Workbook

Sheet Registro
A1: TITULO | B1: ESTUDIO DE IMPACTO AMBIENTAL: PROCEDIMIENTO Y HERRAMIENTAS
A3: AUTORES | B3: ROBERTO PECHE GONZALEZ
B4: DOLORES ENCINAS MALAGON
B5: ZURIÑE GOMEZ DE BALUGERA LOPEZ DE ALDA
B6: MARIA ARRITOKIETA ORTUZAR IRAGORRI
A8: ISBN: | B8: 978-84-613-9696-2

Sheet 232-233
A1: nº de indicador: | B1: 232 | C1: función de transformación: | D1: CA=(-1E-04)x^2+(2E-02)x | E1: 0<x<100
A2: Indicador: | B2: Superficie equivalente de espacios de ocio, expresada como % sobre el total
A3: fórmula del indicador
A4: unidad del indicador:
A5: rango de valores del indicador: | B5: 0 - 100 | C5: valor del indicador | D5: 10
A6: Tipo de indicador | B6: 2 (T=0,25) | C6: calidad ambiental | D6: =IF(D5<0,"valor del indicador fuera de rango",IF(D5<=100,-0.0001*(D5^2)+0.02*(D5),IF(D5>100,"valor del indicador fuera de rango"))) -> 0.190
A7: valor del indicador | B7: calidad ambiental | C7: representación de la función de transformación
A8: 0 | B8: =-0.0001*(A8^2)+0.02*(A8) -> 0.000
A9: 10 | B9: 0.190
A10: 15 | B10: 0.278
A11: 20 | B11: 0.360
A12: 25 | B12: 0.438
A13: 30 | B13: 0.510
A14: 35 | B14: 0.578
A15: 40 | B15: 0.640
A16: 45 | B16: 0.698
A17: 50 | B17: 0.750
A18: 55 | B18: 0.798
A19: 60 | B19: 0.840
A20: =+A19+5 -> 65 | B20: 0.878
A21: 70 | B21: 0.910
A22: 75 | B22: 0.938
A23: 80 | B23: 0.960
A24: 85 | B24: 0.978
A25: 90 | B25: 0.990
A26: 100 | B26: 1.000
A29: nº de indicador: | B29: 233 | C29: función de transformación: | D29: CA=(-1E-04)x^2+1 | E29: 0<x<100
A30: Indicador: | B30: % de variación de la superficie equivalente destinada a espacios de ocio
A31: fórmula del indicador
A32: unidad del indicador:
A33: rango de valores del indicador: | B33: 0 - 100 | C33: valor del indicador | D33: 10
A34: Tipo de indicador | B34: 2 (T=0,25) | C34: calidad ambiental | D34: =IF(D33<0,"valor del indicador fuera de rango",IF(D33<=100,-0.0001*(D33^2)+1,IF(D33>100,"valor del indicador fuera de rango"))) -> 0.990
A35: valor del indicador | B35: calidad ambiental | C35: representación de la función de transformación
A36: 0 | B36: =-0.0001*(A36^2)+1 -> 1.000
A37: 10 | B37: 0.990
A38: =+A37+5 -> 15 | B38: 0.978
A39: 20 | B39: 0.960
A40: 25 | B40: 0.938
A41: 30 | B41: 0.910
A42: 35 | B42: 0.878
A43: 40 | B43: 0.840
A44: 45 | B44: 0.798
A45: 50 | B45: 0.750
A46: 55 | B46: 0.698
A47: 60 | B47: 0.640
A48: 65 | B48: 0.578
A49: 70 | B49: 0.510
A50: 75 | B50: 0.438
A51: 80 | B51: 0.360
A52: 85 | B52: 0.278
A53: 90 | B53: 0.190
A54: 100 | B54: 0.000

Sheet 234
A1: nº de indicador: | B1: 234 | C1: función de transformación: | D1: CA=(1E-02)x | E1: 0<x<100
A2: Indicador: | B2: Índice de productividad de la caza
A3: fórmula del indicador
A4: unidad del indicador:
A5: rango de valores del indicador: | B5: 0 - 100 | C5: valor del indicador | D5: 15
A6: Tipo de indicador | B6: 2 (T=0,25) | C6: calidad ambiental | D6: =IF(D5<0,"valor del indicador fuera de rango",IF(D5<=100,0.01*(D5),IF(D5>100,"valor del indicador fuera de rango"))) -> 0.150
A7: valor del indicador | B7: calidad ambiental | C7: representación de la función de transformación
A8: 0 | B8: =0.01*(A8) -> 0.000
A9: 2 | B9: 0.020
A10: 5 | B10: 0.050
A11: 7 | B11: 0.070
A12: 10 | B12: 0.100
A13: =+A12+5 -> 15 | B13: 0.150
A14: 20 | B14: 0.200
A15: 25 | B15: 0.250
A16: 30 | B16: 0.300
A17: 35 | B17: 0.350
A18: 40 | B18: 0.400
A19: 45 | B19: 0.450
A20: 50 | B20: 0.500
A21: 55 | B21: 0.550
A22: 60 | B22: 0.600
A23: 65 | B23: 0.650
A24: 70 | B24: 0.700
A25: 75 | B25: 0.750
A26: 80 | B26: 0.800
A27: 85 | B27: 0.850
A28: 90 | B28: 0.900
A29: 100 | B29: 1.000

Sheet 235
A1: nº de indicador: | B1: 235 | C1: función de transformación: | D1: CA=(1E-02)x | E1: 0<x<100
A2: Indicador: | B2: Índice de productividad de la pesca
A3: fórmula del indicador
A4: unidad del indicador:
A5: rango de valores del indicador: | B5: 0 - 100 | C5: valor del indicador | D5: 20
A6: Tipo de indicador | B6: 2 (T=0,25) | C6: calidad ambiental | D6: =IF(D5<0,"valor del indicador fuera de rango",IF(D5<=100,0.01*(D5),IF(D5>100,"valor del indicador fuera de rango"))) -> 0.200
A7: valor del indicador | B7: calidad ambiental | C7: representación de la función de transformación
A8: 0 | B8: =0.01*(A8) -> 0.000
A9: 10 | B9: 0.100
A10: 20 | B10: 0.200
A11: =+A10+5 -> 25 | B11: 0.250
A12: 30 | B12: 0.300
A13: 35 | B13: 0.350
A14: 40 | B14: 0.400
A15: 45 | B15: 0.450
A16: 50 | B16: 0.500
A17: 55 | B17: 0.550
A18: 60 | B18: 0.600
A19: =+A18+5 -> 65 | B19: 0.650
A20: 70 | B20: 0.700
A21: 75 | B21: 0.750
A22: 80 | B22: 0.800
A23: 85 | B23: 0.850
A24: 90 | B24: 0.900
A25: 95 | B25: 0.950
A26: 100 | B26: 1.000

Sheet 236
A1: nº de indicador: | B1: 236 | C1: función de transformación: | D1: CA=x | E1: 0<x<4
A2: Indicador: | B2: Aptitud para el baño
A3: fórmula del indicador
A4: unidad del indicador:
A5: rango de valores del indicador: | B5: 0 - 4 | C5: valor del indicador | D5: 0.4
A6: Tipo de indicador | B6: 3 (T=0,50) | C6: calidad ambiental | D6: =IF(D5<0,"valor del indicador fuera de rango",IF(D5<=4,D5/4,IF(D5<=4,1,IF(D5>4,"valor del indicador fuera de rango")))) -> 0.100
A7: valor del indicador | B7: calidad ambiental | C7: representación de la función de transformación
A8: 0.0 | B8: =+A8/4 -> 0.000
A9: 0.2 | B9: =+A9/4 -> 0.050
A10: 0.4 | B10: 0.100
A11: 0.6 | B11: 0.150
A12: 0.8 | B12: 0.200
A13: 1.0 | B13: 0.250
A14: 1.0 | B14: 0.250
A15: =+A14+0.3 -> 1.3 | B15: 0.325
A16: 1.5 | B16: 0.375
A17: =+A16+0.3 -> 1.8 | B17: 0.450
A18: 2.0 | B18: 0.500
A19: =+A18+0.3 -> 2.3 | B19: 0.575
A20: =+A19+0.3 -> 2.6 | B20: 0.650
A21: 3.0 | B21: 0.750
A22: =+A21+0.3 -> 3.3 | B22: 0.825
A23: =+A22+0.3 -> 3.6 | B23: 0.900
A24: =+A23+0.3 -> 3.9 | B24: 0.975
A25: 4.0 | B25: 1.000

Sheet 237
A1: nº de indicador: | B1: 237 | C1: función de transformación: | D1: CA=x | E1: 0<x<4
A2: Indicador: | B2: Aptitud para el recreo concentrado
A3: fórmula del indicador
A4: unidad del indicador:
A5: rango de valores del indicador: | B5: 0 - 4 | C5: valor del indicador | D5: 0.6
A6: Tipo de indicador | B6: 3 (T=0,50) | C6: calidad ambiental | D6: =IF(D5<0,"valor del indicador fuera de rango",IF(D5<=4,D5/4,IF(D5<=4,1,IF(D5>4,"valor del indicador fuera de rango")))) -> 0.150
A7: valor del indicador | B7: calidad ambiental | C7: representación de la función de transformación
A8: 0.0 | B8: =+A8/4 -> 0.000
A9: 0.2 | B9: =+A9/4 -> 0.050
A10: 0.4 | B10: 0.100
A11: 0.6 | B11: 0.150
A12: 0.8 | B12: 0.200
A13: 1.0 | B13: 0.250
A14: 1.0 | B14: 0.250
A15: =+A14+0.3 -> 1.3 | B15: 0.325
A16: 1.5 | B16: 0.375
A17: =+A16+0.3 -> 1.8 | B17: 0.450
A18: 2.0 | B18: 0.500
A19: =+A18+0.3 -> 2.3 | B19: 0.575
A20: =+A19+0.3 -> 2.6 | B20: 0.650
A21: 3.0 | B21: 0.750
A22: =+A21+0.3 -> 3.3 | B22: 0.825
A23: =+A22+0.3 -> 3.6 | B23: 0.900
A24: =+A23+0.3 -> 3.9 | B24: 0.975
A25: 4.0 | B25: 1.000

Sheet 238
A1: nº de indicador: | B1: 238 | C1: función de transformación: | D1: CA=x | E1: 0<x<4
A2: Indicador: | B2: Aptitud para la acampada
A3: fórmula del indicador
A4: unidad del indicador:
A5: rango de valores del indicador: | B5: 0 - 4 | C5: valor del indicador | D5: 0.4
A6: Tipo de indicador | B6: 3 (T=0,50) | C6: calidad ambiental | D6: =IF(D5<0,"valor del indicador fuera de rango",IF(D5<=4,D5/4,IF(D5<=4,1,IF(D5>4,"valor del indicador fuera de rango")))) -> 0.100
A7: valor del indicador | B7: calidad ambiental | C7: representación de la función de transformación
A8: 0.0 | B8: =+A8/4 -> 0.000
A9: 0.2 | B9: =+A9/4 -> 0.050
A10: 0.4 | B10: 0.100
A11: 0.6 | B11: 0.150
A12: 0.8 | B12: 0.200
A13: 1.0 | B13: 0.250
A14: 1.0 | B14: 0.250
A15: =+A14+0.3 -> 1.3 | B15: 0.325
A16: 1.5 | B16: 0.375
A17: =+A16+0.3 -> 1.8 | B17: 0.450
A18: 2.0 | B18: 0.500
A19: =+A18+0.3 -> 2.3 | B19: 0.575
A20: =+A19+0.3 -> 2.6 | B20: 0.650
A21: 3.0 | B21: 0.750
A22: =+A21+0.3 -> 3.3 | B22: 0.825
A23: =+A22+0.3 -> 3.6 | B23: 0.900
A24: =+A23+0.3 -> 3.9 | B24: 0.975
A25: 4.0 | B25: 1.000

Sheet 239
A1: nº de indicador: | B1: 239 | C1: función de transformación: | D1: CA=x | E1: 0<x<4
A2: Indicador: | B2: Aptitud para el recreo difuso y el senderismo
A3: fórmula del indicador
A4: unidad del indicador:
A5: rango de valores del indicador: | B5: 0 - 4 | C5: valor del indicador | D5: 2
A6: Tipo de indicador | B6: 3 (T=0,50) | C6: calidad ambiental | D6: =IF(D5<0,"valor del indicador fuera de rango",IF(D5<=4,D5/4,IF(D5<=4,1,IF(D5>4,"valor del indicador fuera de rango")))) -> 0.500
A7: valor del indicador | B7: calidad ambiental | C7: representación de la función de transformación
A8: 0.0 | B8: =+A8/4 -> 0.000
A9: 0.2 | B9: =+A9/4 -> 0.050
A10: 0.4 | B10: 0.100
A11: 0.6 | B11: 0.150
A12: 0.8 | B12: 0.200
A13: 1.0 | B13: 0.250
A14: 1.0 | B14: 0.250
A15: =+A14+0.3 -> 1.3 | B15: 0.325
A16: 1.5 | B16: 0.375
A17: =+A16+0.3 -> 1.8 | B17: 0.450
A18: 2.0 | B18: 0.500
A19: =+A18+0.3 -> 2.3 | B19: 0.575
A20: =+A19+0.3 -> 2.6 | B20: 0.650
A21: 3.0 | B21: 0.750
A22: =+A21+0.3 -> 3.3 | B22: 0.825
A23: =+A22+0.3 -> 3.6 | B23: 0.900
A24: =+A23+0.3 -> 3.9 | B24: 0.975
A25: 4.0 | B25: 1.000

Sheet 240
A1: nº de indicador: | B1: 240 | C1: función de transformación: | D1: CA=x | E1: 0<x<4
A2: Indicador: | B2: Aptitud para los miradores turísticos
A3: fórmula del indicador
A4: unidad del indicador:
A5: rango de valores del indicador: | B5: 0 - 4 | C5: valor del indicador | D5: 2
A6: Tipo de indicador | B6: 3 (T=0,50) | C6: calidad ambiental | D6: =IF(D5<0,"valor del indicador fuera de rango",IF(D5<=4,D5/4,IF(D5<=4,1,IF(D5>4,"valor del indicador fuera de rango")))) -> 0.500
A7: valor del indicador | B7: calidad ambiental | C7: representación de la función de transformación
A8: 0.0 | B8: =+A8/4 -> 0.000
A9: 0.2 | B9: =+A9/4 -> 0.050
A10: 0.4 | B10: 0.100
A11: 0.6 | B11: 0.150
A12: 0.8 | B12: 0.200
A13: 1.0 | B13: 0.250
A14: 1.0 | B14: 0.250
A15: =+A14+0.3 -> 1.3 | B15: 0.325
A16: 1.5 | B16: 0.375
A17: =+A16+0.3 -> 1.8 | B17: 0.450
A18: 2.0 | B18: 0.500
A19: =+A18+0.3 -> 2.3 | B19: 0.575
A20: =+A19+0.3 -> 2.6 | B20: 0.650
A21: 3.0 | B21: 0.750
A22: =+A21+0.3 -> 3.3 | B22: 0.825
A23: =+A22+0.3 -> 3.6 | B23: 0.900
A24: =+A23+0.3 -> 3.9 | B24: 0.975
A25: 4.0 | B25: 1.000
